Workbook

Sheet Información del empleado
A2: Información del empleado
A3: [Nombre de la compañía]
A4: ID de empleado | B4: Nombre del empleado | C4: Salario por horas | D4: Estado de impuestos | E4: Prestación estatal (solicitud de prestación contributiva) | F4: Impuesto estatal | G4: Impuesto sobre la renta (porcentaje según prestación federal) | H4: Impuesto de la seguridad social | I4: Impuesto del seguro médico | J4: Total impuestos retenidos | K4: Deducción del seguro | L4: Otras deducciones regulares | M4: Total de deducciones regulares (excluyendo los impuestos)
A5: 1 | B5: Víctor Alcaraz | C5: 10.00 € | D5: 1 | E5: 4 | F5: 2.30% | G5: 28.00% | H5: 6.30% | I5: 1.45% | J5: =Tabla1[[#This Row],[Impuesto estatal]]+Tabla1[[#This Row],[Impuesto sobre la renta (porcentaje según prestación federal)]]+Tabla1[[#This Row],[Impuesto de la seguridad social]]+Tabla1[[#This Row],[Impuesto del seguro médico]] -> 38.05% | K5: 20.00 € | L5: 40.00 € | M5: =Tabla1[[#This Row],[Deducción del seguro]]+Tabla1[[#This Row],[Otras deducciones regulares]] -> 60.00 €
A6: 2 | B6: Federico Tercedor | C6: 13.00 € | D6: 1 | E6: 4 | F6: 2.30% | G6: 28.00% | H6: 6.30% | I6: 1.45% | J6: =Tabla1[[#This Row],[Impuesto estatal]]+Tabla1[[#This Row],[Impuesto sobre la renta (porcentaje según prestación federal)]]+Tabla1[[#This Row],[Impuesto de la seguridad social]]+Tabla1[[#This Row],[Impuesto del seguro médico]] -> 38.05% | K6: 20.00 € | L6: 52.00 € | M6: =Tabla1[[#This Row],[Deducción del seguro]]+Tabla1[[#This Row],[Otras deducciones regulares]] -> 72.00 €
A7: 3 | B7: Elvira Cano | C7: 10.00 € | D7: 1 | E7: 4 | F7: 2.30% | G7: 28.00% | H7: 6.30% | I7: 1.45% | J7: =Tabla1[[#This Row],[Impuesto estatal]]+Tabla1[[#This Row],[Impuesto sobre la renta (porcentaje según prestación federal)]]+Tabla1[[#This Row],[Impuesto de la seguridad social]]+Tabla1[[#This Row],[Impuesto del seguro médico]] -> 38.05% | K7: 20.00 € | L7: 0 | M7: =Tabla1[[#This Row],[Deducción del seguro]]+Tabla1[[#This Row],[Otras deducciones regulares]] -> 20.00 €

Sheet Calculadora de nóminas
A1: Calculadora de nóminas
J2: Final del período: | K2: 4568800.00%
A3: ='Información del empleado'!$A$3 -> [Nombre de la compañía]
A4: ID de empleado | B4: Nombre del empleado | C4: Horas normales de trabajo | D4: Horas de vacaciones | E4: Horas de baja | F4: Horas extra | G4: Pago por horas extra | H4: Pago bruto | I4: Impuestos y deducciones | J4: Otras deducciones | K4: Pago neto
A5: 1 | B5: =VLOOKUP(A5,Tabla1[],2,FALSE) -> Víctor Alcaraz | C5: 50.00 | D5: 5.00 | E5: 1.00 | H5: =(VLOOKUP(A5,Tabla1[],3,FALSE)*(Tabla2[[#This Row],[Horas normales de trabajo]]+Tabla2[[#This Row],[Horas de vacaciones]]+Tabla2[[#This Row],[Horas de baja]])+Tabla2[[#This Row],[Horas extra]]*Tabla2[[#This Row],[Pago por horas extra]]) -> 560.00 € | I5: =VLOOKUP(A5,Tabla1[],10,FALSE)*Tabla2[[#This Row],[Pago bruto]]+Tabla1[[#This Row],[Total de deducciones regulares (excluyendo los impuestos)]] -> 273.08 € | J5: 20.00 € | K5: =Tabla2[[#This Row],[Pago bruto]]-Tabla2[[#This Row],[Impuestos y deducciones ]]-Tabla2[[#This Row],[Otras deducciones]] -> 266.92 €
A6: 2 | B6: =VLOOKUP(A6,Tabla1[],2,FALSE) -> Federico Tercedor | C6: 40.00 | D6: 0.00 | E6: 0.00 | H6: =(VLOOKUP(A6,Tabla1[],3,FALSE)*(Tabla2[[#This Row],[Horas normales de trabajo]]+Tabla2[[#This Row],[Horas de vacaciones]]+Tabla2[[#This Row],[Horas de baja]])+Tabla2[[#This Row],[Horas extra]]*Tabla2[[#This Row],[Pago por horas extra]]) -> 520.00 € | I6: =VLOOKUP(A6,Tabla1[],10,FALSE)*Tabla2[[#This Row],[Pago bruto]]+Tabla1[[#This Row],[Total de deducciones regulares (excluyendo los impuestos)]] -> 269.86 € | J6: 52.00 € | K6: =Tabla2[[#This Row],[Pago bruto]]-Tabla2[[#This Row],[Impuestos y deducciones ]]-Tabla2[[#This Row],[Otras deducciones]] -> 198.14 €
A7: 3 | B7: =VLOOKUP(A7,Tabla1[],2,FALSE) -> Elvira Cano | C7: 52.00 | D7: 0.00 | E7: 0.00 | F7: 2.00 | G7: 20.00 € | H7: =(VLOOKUP(A7,Tabla1[],3,FALSE)*(Tabla2[[#This Row],[Horas normales de trabajo]]+Tabla2[[#This Row],[Horas de vacaciones]]+Tabla2[[#This Row],[Horas de baja]])+Tabla2[[#This Row],[Horas extra]]*Tabla2[[#This Row],[Pago por horas extra]]) -> 560.00 € | I7: =VLOOKUP(A7,Tabla1[],10,FALSE)*Tabla2[[#This Row],[Pago bruto]]+Tabla1[[#This Row],[Total de deducciones regulares (excluyendo los impuestos)]] -> 233.08 € | J7: 20.00 € | K7: =Tabla2[[#This Row],[Pago bruto]]-Tabla2[[#This Row],[Impuestos y deducciones ]]-Tabla2[[#This Row],[Otras deducciones]] -> 306.92 €

Sheet Nóminas individuales
C2: =('Información del empleado'!$A$3) -> [Nombre de la compañía]
C3: Período: | D3: ='Calculadora de nóminas'!$K$2 -> 4568800.00% | E3: Nombre del empleado | F3: =IFERROR(VLOOKUP(H3,Tabla1[],2),"") -> Víctor Alcaraz | G3: ID de empleado | H3: 1
C5: Estado de impuestos | D5: =IFERROR(VLOOKUP(H3,Tabla1[],4),"") -> 1 | E5: Prestación estatal (solicitud de prestación contributiva) | F5: =IFERROR(VLOOKUP(H3,Tabla1[],5,FALSE),"") -> 4 | G5: Horas de trabajo | H5: =IFERROR(VLOOKUP(H3,Tabla2[],3,FALSE),"") -> 50
C6: Pago por hora | D6: =IFERROR(VLOOKUP(H3,Tabla1[],3,FALSE),"") -> 10.00 € | E6: Pago por horas extra | F6: =IFERROR(VLOOKUP(H3,Tabla2[],7,FALSE),"") -> 0 | G6: Horas de baja | H6: =IFERROR(VLOOKUP(H3,Tabla2[],5,FALSE),"") -> 1
C7: Impuesto de la seguridad social | D7: =IFERROR(IFERROR(VLOOKUP(H3,Tabla1[],8,FALSE),"")*H9,"") -> 35.28 € | E7: Impuesto sobre la renta | F7: =IFERROR(IFERROR(VLOOKUP(H3,Tabla1[],7,FALSE),"")*H9,"") -> 156.80 € | G7: Horas de vacaciones | H7: =IFERROR(VLOOKUP(H3,Tabla2[],4,FALSE),"") -> 5
C8: Impuesto del seguro médico | D8: =IFERROR(IFERROR(VLOOKUP(H3,Tabla1[],9,FALSE),"")*H9,"") -> 8.12 € | E8: Impuesto estatal | F8: =IFERROR(IFERROR(VLOOKUP(H3,Tabla1[],6,FALSE),"")*H9,"") -> 12.88 € | G8: Horas extra | H8: =IFERROR(VLOOKUP(H3,Tabla2[],6,FALSE),"") -> 0
C9: Deducción del seguro | D9: =IFERROR(VLOOKUP(H3,Tabla1[],11,FALSE),"") -> 20.00 € | E9: Otras deducciones regulares | F9: =IFERROR(VLOOKUP(H3,Tabla1[],12,FALSE),"") -> 40.00 € | G9: Pago bruto | H9: =IFERROR(VLOOKUP(H3,Tabla2[],8,FALSE),"") -> 560.00 €
C10: Impuestos totales y deducciones regulares | D10: =IFERROR(SUM(F7:F9)+SUM(D7:D9),"") -> 273.08 € | E10: Otras deducciones | F10: =IFERROR(VLOOKUP(H3,Tabla2[],10,FALSE),"") -> 20.00 € | G10: Impuestos y deducciones totales | H10: =IFERROR(IFERROR(VLOOKUP(H3,Tabla2[],9,FALSE),"")+F10,"") -> 293.08 €
G11: Pago neto | H11: =IFERROR(VLOOKUP(H3,Tabla2[],11,FALSE),"") -> 266.92 €
C14: =('Información del empleado'!$A$3) -> [Nombre de la compañía]
C15: Período: | D15: ='Calculadora de nóminas'!$K$2 -> 4568800.00% | E15: Nombre del empleado | F15: =IFERROR(VLOOKUP(H15,Tabla1[],2),"") -> Federico Tercedor | G15: ID de empleado | H15: 2
C17: Estado de impuestos | D17: =IFERROR(VLOOKUP(H15,Tabla1[],4),"") -> 1 | E17: Prestación estatal (solicitud de prestación contributiva) | F17: =IFERROR(VLOOKUP(H15,Tabla1[],5,FALSE),"") -> 4 | G17: Horas de trabajo | H17: =IFERROR(VLOOKUP(H15,Tabla2[],3,FALSE),"") -> 40
C18: Pago por hora | D18: =IFERROR(VLOOKUP(H15,Tabla1[],3,FALSE),"") -> 13.00 € | E18: Pago por horas extra | F18: =IFERROR(VLOOKUP(H15,Tabla2[],7,FALSE),"") -> 0 | G18: Horas de baja | H18: =IFERROR(VLOOKUP(H15,Tabla2[],5,FALSE),"") -> 0
C19: Impuesto de la seguridad social | D19: =IFERROR(IFERROR(VLOOKUP(H15,Tabla1[],8,FALSE),"")*H21,"") -> 32.76 € | E19: Impuesto sobre la renta | F19: =IFERROR(IFERROR(VLOOKUP(H15,Tabla1[],7,FALSE),"")*H21,"") -> 145.60 € | G19: Horas de vacaciones | H19: =IFERROR(VLOOKUP(H15,Tabla2[],4,FALSE),"") -> 0
C20: Impuesto del seguro médico | D20: =IFERROR(IFERROR(VLOOKUP(H15,Tabla1[],9,FALSE),"")*H21,"") -> 7.54 € | E20: Impuesto estatal | F20: =IFERROR(IFERROR(VLOOKUP(H15,Tabla1[],6,FALSE),"")*H21,"") -> 11.96 € | G20: Horas extra | H20: =IFERROR(VLOOKUP(H15,Tabla2[],6,FALSE),"") -> 0
C21: Deducción del seguro | D21: =IFERROR(VLOOKUP(H15,Tabla1[],11,FALSE),"") -> 20.00 € | E21: Otras deducciones regulares | F21: =IFERROR(VLOOKUP(H15,Tabla1[],12,FALSE),"") -> 52.00 € | G21: Pago bruto | H21: =IFERROR(VLOOKUP(H15,Tabla2[],8,FALSE),"") -> 520.00 €
C22: Impuestos totales y deducciones regulares | D22: =IFERROR(SUM(F19:F21)+SUM(D19:D21),"") -> 269.86 € | E22: Otras deducciones | F22: =IFERROR(VLOOKUP(H15,Tabla2[],10,FALSE),"") -> 52.00 € | G22: Impuestos y deducciones totales | H22: =IFERROR(IFERROR(VLOOKUP(H15,Tabla2[],9,FALSE),"")+F22,"") -> 321.86 €
G23: Pago neto | H23: =IFERROR(VLOOKUP(H15,Tabla2[],11,FALSE),"") -> 198.14 €
C26: =('Información del empleado'!$A$3) -> [Nombre de la compañía]
C27: Período: | D27: ='Calculadora de nóminas'!$K$2 -> 4568800.00% | E27: Nombre del empleado | F27: =IFERROR(VLOOKUP(H27,Tabla1[],2),"") -> Elvira Cano | G27: ID de empleado | H27: 3
C29: Estado de impuestos | D29: =IFERROR(VLOOKUP(H27,Tabla1[],4),"") -> 1 | E29: Prestación estatal (solicitud de prestación contributiva) | F29: =IFERROR(VLOOKUP(H27,Tabla1[],5,FALSE),"") -> 4 | G29: Horas de trabajo | H29: =IFERROR(VLOOKUP(H27,Tabla2[],3,FALSE),"") -> 52
C30: Pago por hora | D30: =IFERROR(VLOOKUP(H27,Tabla1[],3,FALSE),"") -> 10.00 € | E30: Pago por horas extra | F30: =IFERROR(VLOOKUP(H27,Tabla2[],7,FALSE),"") -> 20.00 € | G30: Horas de baja | H30: =IFERROR(VLOOKUP(H27,Tabla2[],5,FALSE),"") -> 0
C31: Impuesto de la seguridad social | D31: =IFERROR(IFERROR(VLOOKUP(H27,Tabla1[],8,FALSE),"")*H33,"") -> 35.28 € | E31: Impuesto sobre la renta | F31: =IFERROR(IFERROR(VLOOKUP(H27,Tabla1[],7,FALSE),"")*H33,"") -> 156.80 € | G31: Horas de vacaciones | H31: =IFERROR(VLOOKUP(H27,Tabla2[],4,FALSE),"") -> 0
C32: Impuesto del seguro médico | D32: =IFERROR(IFERROR(VLOOKUP(H27,Tabla1[],9,FALSE),"")*H33,"") -> 8.12 € | E32: Impuesto estatal | F32: =IFERROR(IFERROR(VLOOKUP(H27,Tabla1[],6,FALSE),"")*H33,"") -> 12.88 € | G32: Horas extra | H32: =IFERROR(VLOOKUP(H27,Tabla2[],6,FALSE),"") -> 2
C33: Deducción del seguro | D33: =IFERROR(VLOOKUP(H27,Tabla1[],11,FALSE),"") -> 20.00 € | E33: Otras deducciones regulares | F33: =IFERROR(VLOOKUP(H27,Tabla1[],12,FALSE),"") -> 0 | G33: Pago bruto | H33: =IFERROR(VLOOKUP(H27,Tabla2[],8,FALSE),"") -> 560.00 €
C34: Impuestos totales y deducciones regulares | D34: =IFERROR(SUM(F31:F33)+SUM(D31:D33),"") -> 233.08 € | E34: Otras deducciones | F34: =IFERROR(VLOOKUP(H27,Tabla2[],10,FALSE),"") -> 20.00 € | G34: Impuestos y deducciones totales | H34: =IFERROR(IFERROR(VLOOKUP(H27,Tabla2[],9,FALSE),"")+F34,"") -> 253.08 €
G35: Pago neto | H35: =IFERROR(VLOOKUP(H27,Tabla2[],11,FALSE),"") -> 306.92 €
C39: =('Información del empleado'!$A$3) -> [Nombre de la compañía]
C40: Período: | D40: ='Calculadora de nóminas'!$K$2 -> 4568800.00% | E40: Nombre del empleado | F40: =IFERROR(VLOOKUP(H40,Tabla1[],2),"") ->  | G40: ID de empleado
C42: Estado de impuestos | D42: =IFERROR(VLOOKUP(H40,Tabla1[],4),"") ->  | E42: Prestación estatal (solicitud de prestación contributiva) | F42: =IFERROR(VLOOKUP(H40,Tabla1[],5,FALSE),"") ->  | G42: Horas de trabajo | H42: =IFERROR(VLOOKUP(H40,Tabla2[],3,FALSE),"") -> 
C43: Pago por hora | D43: =IFERROR(VLOOKUP(H40,Tabla1[],3,FALSE),"") ->  | E43: Pago por horas extra | F43: =IFERROR(VLOOKUP(H40,Tabla2[],7,FALSE),"") ->  | G43: Horas de baja | H43: =IFERROR(VLOOKUP(H40,Tabla2[],5,FALSE),"") -> 
C44: Impuesto de la seguridad social | D44: =IFERROR(IFERROR(VLOOKUP(H40,Tabla1[],8,FALSE),"")*H46,"") ->  | E44: Impuesto sobre la renta | F44: =IFERROR(IFERROR(VLOOKUP(H40,Tabla1[],7,FALSE),"")*H46,"") ->  | G44: Horas de vacaciones | H44: =IFERROR(VLOOKUP(H40,Tabla2[],4,FALSE),"") -> 
C45: Impuesto del seguro médico | D45: =IFERROR(IFERROR(VLOOKUP(H40,Tabla1[],9,FALSE),"")*H46,"") ->  | E45: Impuesto estatal | F45: =IFERROR(IFERROR(VLOOKUP(H40,Tabla1[],6,FALSE),"")*H46,"") ->  | G45: Horas extra | H45: =IFERROR(VLOOKUP(H40,Tabla2[],6,FALSE),"") -> 
C46: Deducción del seguro | D46: =IFERROR(VLOOKUP(H40,Tabla1[],11,FALSE),"") ->  | E46: Otras deducciones regulares | F46: =IFERROR(VLOOKUP(H40,Tabla1[],12,FALSE),"") ->  | G46: Pago bruto | H46: =IFERROR(VLOOKUP(H40,Tabla2[],8,FALSE),"") -> 
C47: Impuestos totales y deducciones regulares | D47: =IFERROR(SUM(F44:F46)+SUM(D44:D46),"") -> 0 | E47: Otras deducciones | F47: =IFERROR(VLOOKUP(H40,Tabla2[],10,FALSE),"") ->  | G47: Impuestos y deducciones totales | H47: =IFERROR(IFERROR(VLOOKUP(H40,Tabla2[],9,FALSE),"")+F47,"") -> 
G48: Pago neto | H48: =IFERROR(VLOOKUP(H40,Tabla2[],11,FALSE),"") -> 
